fUST/lending_fUST_20240917
["ID","MTS","AMOUNT","RATE_DAILY","PERIOD"]
[338353309,1726546245057,-178.955856,0.000196,2]
[338353310,1726546245066,-151.0,0.000196,2]
[338353311,1726546245075,-400.49115,0.000196,2]
[338353312,1726546245085,-400.49115,0.000196,2]
[338353313,1726546245094,-600.0,0.000196,2]
[338353314,1726546245104,-500.0,0.00019635,2]
[338353315,1726546245113,-500.0,0.00019635,2]
[338353316,1726546245122,-500.0,0.00019636,2]
[338353317,1726546245131,-314.4,0.00019643,2]
[338353318,1726546245141,-246.178605,0.00019765,2]
[338353319,1726546245150,-7284.39399994,0.000198,2]
[338353320,1726546245160,-1034.03,0.000198,2]
[338353321,1726546245169,-151.0,0.000198,2]
[338353322,1726546245178,-151.0,0.000198,2]
[338353323,1726546245187,-151.0,0.000198,2]
[338353324,1726546245197,-917.23697,0.000198,2]
[338353325,1726546245207,-917.23697,0.000198,2]
[338353326,1726546245216,-263.36285,0.000198,2]
[338353327,1726546245226,-263.36285,0.000198,2]
[338353328,1726546245235,-160.716215,0.000198,2]
[338353329,1726546245245,-160.716215,0.000198,2]
[338353330,1726546245255,-151.0,0.000198,2]
[338353331,1726546245265,-2112.708189,0.000198,2]
[338353332,1726546245275,-2112.708189,0.000198,2]
[338353333,1726546245283,-339.433553,0.000198,2]
[338353334,1726546245292,-339.433553,0.000198,2]
[338353335,1726546245303,-474.402333,0.000198,2]
[338353336,1726546245312,-474.402333,0.000198,2]
[338353337,1726546245321,-151.0,0.000198,2]
[338353338,1726546245332,-11446.06372262,0.000198,2]
[338353339,1726546245341,-600.0,0.000198,2]
[338353340,1726546245350,-167.53524671,0.00019808,2]
[338353341,1726546245360,-167.53524671,0.00019808,2]
[338353342,1726546245369,-314.4,0.00019812,2]
[338353343,1726546245379,-1076.2064252,0.00019835,2]
[338353344,1726546245388,-2703.47754782,0.00019851,2]
[338353345,1726546245398,-3430.149289,0.00019863,2]
[338353346,1726546245407,-1000.29479632,0.0001988,2]
[338353347,1726546245417,-300.0,0.000199,8]
[338353348,1726546245426,-1000.0,0.00019938,3]
[338353349,1726546245435,-151.0,0.00019965,2]
[338353350,1726546245444,-151.0,0.00019965,2]
[338353351,1726546245453,-332.852387,0.00019965,2]
[338353353,1726546245463,-151.0,0.00019965,2]
[338353355,1726546245472,-1075.205265,0.00019965,2]
[338353356,1726546245482,-332.852387,0.00019965,2]
[338353357,1726546245492,-1075.205265,0.00019965,2]
[338353358,1726546245501,-776.12065,0.00019965,2]
[338353359,1726546245511,-776.12065,0.00019965,2]
[338353360,1726546245520,-2904.060664,0.00019965,2]
[338353361,1726546245530,-2904.060664,0.00019965,2]
[338353362,1726546245540,-351.657342,0.00019965,2]
[338353363,1726546245549,-351.657342,0.00019965,2]
[338353364,1726546245559,-819.44016,0.00019965,2]
[338353365,1726546245569,-819.44016,0.00019965,2]
[338353366,1726546245579,-163.263951,0.00019965,2]
[338353367,1726546245588,-163.263951,0.00019965,2]
[338353368,1726546245598,-151.0,0.00019965,2]
[338353369,1726546245607,-151.0,0.00019965,2]
[338353370,1726546245618,-151.0,0.00019965,2]
[338353372,1726546245628,-1923.832792,0.00019965,2]
[338353373,1726546245637,-1923.832792,0.00019965,2]
[338353374,1726546245647,-500.0,0.00019973,2]
[338353375,1726546245657,-500.0,0.00019973,2]
[338353376,1726546245667,-500.47227061,0.00019973,2]
[338353378,1726546245676,-500.0,0.00019973,2]
[338353379,1726546245686,-500.0,0.00019973,2]
[338353380,1726546245696,-500.0,0.00019973,2]
[338353381,1726546245705,-151.0,0.00019976,2]
[338353382,1726546245716,-1039.563439,0.00019976,2]
[338353383,1726546245726,-1039.563439,0.00019976,2]
[338353384,1726546245736,-153.645148,0.00019976,2]
[338353385,1726546245745,-173.647869,0.00019976,2]
[338353386,1726546245755,-173.647869,0.00019976,2]
[338353387,1726546245765,-1903.03768,0.00019976,2]
[338353388,1726546245774,-1903.03768,0.00019976,2]
[338353389,1726546245783,-152.907396,0.00019979,2]
[338353390,1726546245792,-176.128685,0.00019979,2]
[338353391,1726546245802,-176.128685,0.00019979,2]
[338353392,1726546245812,-685.082497,0.00019979,2]
[338353393,1726546245821,-685.082497,0.00019979,2]
[338353394,1726546245831,-314.4,0.0001998,2]
[338353395,1726546245841,-202.266851,0.00019989,2]
[338353396,1726546245850,-202.266851,0.00019989,2]
[338353397,1726546245860,-270.461735,0.00019989,2]
[338353398,1726546245869,-270.461735,0.00019989,2]
[338353399,1726546245880,-791.536608,0.0001999,2]
[338353400,1726546245891,-151.0,0.0001999,2]
[338353401,1726546245901,-1578.423904,0.0001999,2]
[338353402,1726546245910,-791.536608,0.0001999,2]
[338353403,1726546245919,-1578.423904,0.0001999,2]
[338353404,1726546245929,-178.955856,0.0001999,2]
[338353405,1726546245939,-178.955856,0.0001999,2]
[338353406,1726546245949,-151.0,0.0001999,2]
[338353407,1726546245958,-400.49115,0.0001999,2]
[338353408,1726546245967,-400.49115,0.0001999,2]
[338353409,1726546245977,-160.0,0.00019999,2]
[338353410,1726546245986,-160.0,0.00019999,2]
[338353411,1726546245996,-1441.22404876,0.00019999,2]
[338353412,1726546246005,-2466.23348057,0.0002,5]
[338353413,1726546246015,-618.53756452,0.0002,2]
[338353414,1726546246025,-184.0,0.0002,2]
[338353415,1726546246034,-2512.1255,0.0002,7]
[338353416,1726546246043,-184.5,0.0002,2]
[338353417,1726546246053,-148676.81144606,0.0002,2]
[338353418,1726546246063,-5000.0,0.0002,2]
[338353419,1726546246073,-502.0,0.0002,2]
[338353420,1726546246082,-4308.71902169,0.0002,2]
[338353421,1726546246091,-950.04212234,0.0002,2]
[338353422,1726546246659,-10956.53494136,0.0002,2]
[338353423,1726546246669,-20579.26917033,0.0002,2]
[338353424,1726546247273,-150.78554986,0.00018799,2]
[338353425,1726546247283,-335606.90960848,0.0002,2]
[338353426,1726546247294,-192.28908446,0.0002,2]
[338353427,1726546247303,-151.0,0.0002,2]
[338353428,1726546247313,-151.611905,0.0002,2]
[338353429,1726546247323,-158.220405,0.0002,2]
[338353430,1726546247332,-158.22041,0.0002,2]
[338353431,1726546247342,-340266.04740163,0.0002,2]
[338353440,1726546338433,185.48,0.00010959,2]
[338353442,1726546349151,154.57,0.00010959,2]
[338353450,1726546462649,772.85,0.00010959,2]
[338353453,1726546625328,255.0,0.00025999,120]
[338353456,1726546697751,406.346066,0.00013699,2]
[338353462,1726546940005,548.69,0.00025,60]
[338353463,1726546940285,548.69,0.00025,60]
[338353464,1726546940526,548.69,0.00025,60]
[338353465,1726546940781,548.69,0.00025,60]
[338353466,1726546941066,548.69,0.00025,60]
[338353467,1726546941339,548.69,0.00025,60]
[338353468,1726546941628,548.69,0.00025,60]
[338353469,1726546941913,548.69,0.00025,60]
[338353470,1726546942176,548.69,0.00025,60]
[338353471,1726546942414,548.69,0.00025,60]
[338353472,1726546942671,548.69,0.00025,60]
[338353473,1726546943282,548.69,0.00025,60]
[338353474,1726546944585,548.69,0.00025,60]
[338353475,1726546944872,548.69,0.00025,60]
[338353476,1726546945132,548.69,0.00025,60]
[338353477,1726546945563,548.69,0.00025,60]
[338353478,1726546945681,548.69,0.00025,60]
[338353479,1726546945940,548.69,0.00025,60]
[338353480,1726546946182,548.69,0.00025,60]
[338353481,1726546946434,548.69,0.00025,60]
[338353482,1726546946710,548.69,0.00025,60]
[338353483,1726546947002,548.69,0.00025,60]
[338353484,1726546947284,548.69,0.00025,60]
[338353485,1726546947548,548.80419952,0.00025,60]
[338353502,1726547192450,-1457.423515,0.00015897,2]
[338353503,1726547199429,356.841684,0.00013699,2]
[338353505,1726547234355,-169.821394,0.00015878,2]
[338353514,1726547321817,811.93477599,0.000129,2]
[338353515,1726547345172,-300.0,0.00014685,2]
[338353516,1726547345195,-300.0,0.00014685,2]
[338353517,1726547345218,-24900.0,0.00014686,2]
[338353518,1726547345240,-324.594634,0.00015449,2]
[338353519,1726547345266,-324.594634,0.00015453,2]
[338353520,1726547345287,-324.594634,0.00015457,2]
[338353521,1726547345309,-324.594634,0.00015461,2]
[338353522,1726547345331,-324.594634,0.00015465,2]
[338353523,1726547345355,-324.594634,0.00015469,2]
[338353524,1726547345376,-324.594634,0.00015473,2]
[338353525,1726547345397,-324.594634,0.00015478,2]
[338353526,1726547345417,-324.594634,0.00015482,2]
[338353527,1726547345440,-324.594634,0.00015486,2]
[338353528,1726547345461,-324.594634,0.0001549,2]
[338353529,1726547345482,-291.70278028,0.00015494,2]
[338353530,1726547355117,-547.81934873,0.00014502,2]
[338353531,1726547357182,-640.50358927,0.00014502,2]
[338353532,1726547357206,-32.89185372,0.00015494,2]
[338353533,1726547357230,-324.594634,0.00015498,2]
[338353534,1726547357253,-324.594634,0.00015502,2]
[338353535,1726547357278,-324.594634,0.00015506,2]
[338353536,1726547357301,-324.594634,0.0001551,2]
[338353537,1726547357326,-324.594634,0.00015514,2]
[338353538,1726547357348,-324.594634,0.00015518,2]
[338353539,1726547357371,-324.594634,0.00015522,2]
[338353540,1726547357393,-324.594634,0.00015526,2]
[338353541,1726547357416,-65341.07967447,0.00015797,2]
[338353542,1726547357437,-1546.87673546,0.00015897,2]
[338353543,1726547357458,-169.821394,0.0001597,2]
[338353544,1726547357480,-442.1045274,0.00015997,2]
[338353545,1726547357503,-169.821394,0.00016062,2]
[338353546,1726547357526,-420.0,0.00016077,2]
[338353547,1726547357548,-169.821394,0.00016154,2]
[338353548,1726547357571,-420.0,0.00016154,2]
[338353549,1726547357593,-169.821394,0.00016246,2]
[338353550,1726547357614,-169.821394,0.00016338,2]
[338353551,1726547357638,-169.821394,0.0001643,2]
[338353552,1726547357661,-169.821394,0.00016522,2]
[338353553,1726547357683,-169.821394,0.00016613,2]
[338353554,1726547357705,-202.86305916,0.000167,2]
[338353555,1726547357727,-169.821394,0.00016705,2]
[338353556,1726547357748,-6336.98230607,0.00017175,2]
[338353561,1726547367122,-7782.299658,0.00015797,2]
[338353562,1726547382990,10000.0,0.0001401,2]
[338353566,1726547390135,10000.0,0.0001401,2]
[338353567,1726547397047,10000.0,0.0001401,2]
[338353568,1726547403639,10000.0,0.0001401,2]
[338353569,1726547427643,10000.0,0.0001401,2]
[338353616,1726547436335,10000.0,0.0001401,2]
[338353623,1726547438037,-3931.96964812,0.00015797,2]
[338353624,1726547438046,-166.70247582,0.00017075,2]
[338353625,1726547438056,-217.11676273,0.00017164,2]
[338353626,1726547438065,-181.93802197,0.00017175,2]
[338353627,1726547438074,-1171.50054968,0.00017177,2]
[338353628,1726547438083,-300.0,0.00017263,2]
[338353629,1726547438093,-300.0,0.00017263,2]
[338353630,1726547438102,-500.0,0.00017263,2]
[338353631,1726547438111,-500.0,0.00017263,2]
[338353632,1726547438121,-500.0,0.00017263,2]
[338353633,1726547438130,-500.0,0.00017263,2]
[338353634,1726547438139,-500.0,0.00017263,2]
[338353635,1726547438149,-500.0,0.00017263,2]
[338353636,1726547438158,-500.0,0.00017263,2]
[338353637,1726547438167,-500.0,0.00017263,2]
[338353638,1726547438178,-500.0,0.00017263,2]
[338353639,1726547438187,-273.4232973,0.00017263,2]
[338353640,1726547438197,-370.28448367,0.00017263,2]
[338353641,1726547438207,-500.0,0.00017263,2]
[338353642,1726547438217,-526.3567182,0.00017263,2]
[338353643,1726547438226,-157.78372674,0.00017263,2]
[338353644,1726547438235,-500.0,0.00017263,2]
[338353645,1726547438245,-500.0,0.00017263,2]
[338353646,1726547438254,-500.0,0.00017263,2]
[338353647,1726547438264,-500.0,0.00017263,2]
[338353648,1726547438273,-500.0,0.00017263,2]
[338353649,1726547438282,-500.0,0.00017263,2]
[338353650,1726547438291,-500.0,0.00017263,2]
[338353651,1726547438301,-500.0,0.00017263,2]
[338353652,1726547438309,-500.0,0.00017263,2]
[338353653,1726547438319,-500.0,0.00017263,2]
[338353654,1726547438328,-500.0,0.00017263,2]
[338353655,1726547438337,-500.0,0.00017263,2]
[338353656,1726547438346,-500.0,0.00017263,2]
[338353657,1726547438355,-500.0,0.00017263,2]
[338353658,1726547438366,-500.0,0.00017263,2]
[338353659,1726547438375,-500.0,0.00017263,2]
[338353660,1726547438384,-500.0,0.00017263,2]
[338353661,1726547438394,-591.2333513,0.00017263,2]
[338353662,1726547438402,-500.0,0.00017263,2]
[338353663,1726547438411,-387.99661647,0.00017263,2]
[338353664,1726547438422,-500.0,0.00017263,2]
[338353665,1726547438430,-500.0,0.00017263,2]
[338353666,1726547438440,-500.0,0.00017263,2]
[338353667,1726547438449,-500.0,0.00017263,2]
[338353668,1726547438458,-500.0,0.00017263,2]
[338353669,1726547438467,-445.69986499,0.00017263,2]
[338353670,1726547438476,-500.0,0.00017263,2]
[338353671,1726547438485,-500.0,0.00017263,2]
[338353672,1726547438494,-500.0,0.00017263,2]
[338353673,1726547438504,-500.0,0.00017263,2]
[338353674,1726547438517,-500.0,0.00017263,2]
[338353675,1726547438528,-500.0,0.00017263,2]
[338353676,1726547438537,-500.0,0.00017263,2]
[338353677,1726547438547,-500.0,0.00017263,2]
[338353678,1726547438556,-500.0,0.00017263,2]
[338353679,1726547438565,-500.0,0.00017263,2]
[338353680,1726547438574,-500.0,0.00017263,2]
[338353681,1726547438583,-500.0,0.00017263,2]
[338353682,1726547438592,-500.0,0.00017263,2]
[338353683,1726547438601,-500.0,0.00017263,2]
[338353684,1726547438610,-500.0,0.00017263,2]
[338353685,1726547438620,-500.0,0.00017263,2]
[338353686,1726547438629,-500.0,0.00017263,2]
[338353687,1726547438639,-500.0,0.00017263,2]
[338353688,1726547438648,-500.0,0.00017263,2]
[338353689,1726547438657,-500.0,0.00017263,2]
[338353690,1726547438666,-500.0,0.00017263,2]
[338353691,1726547438675,-500.0,0.00017263,2]
[338353692,1726547438684,-500.0,0.00017263,2]
[338353693,1726547438693,-500.0,0.00017263,2]
[338353694,1726547438702,-500.0,0.00017263,2]
[338353695,1726547438713,-500.0,0.00017263,2]
[338353696,1726547438722,-500.0,0.00017263,2]
[338353697,1726547438731,-500.0,0.00017263,2]
[338353698,1726547438741,-500.0,0.00017263,2]
[338353699,1726547438751,-500.0,0.00017263,2]
[338353700,1726547438761,-500.0,0.00017263,2]
[338353701,1726547438770,-500.0,0.00017263,2]
[338353702,1726547438779,-500.0,0.00017263,2]
[338353703,1726547438789,-500.0,0.00017263,2]
[338353704,1726547438798,-500.0,0.00017263,2]
[338353705,1726547438808,-500.0,0.00017263,2]
[338353706,1726547438817,-500.0,0.00017263,2]
[338353707,1726547438826,-500.0,0.00017263,2]
[338353708,1726547438836,-500.0,0.00017263,2]
[338353709,1726547438846,-500.0,0.00017263,2]
[338353710,1726547438855,-500.0,0.00017263,2]
[338353711,1726547438865,-500.0,0.00017263,2]
[338353712,1726547438874,-500.0,0.00017263,2]
[338353713,1726547438883,-500.0,0.00017263,2]
[338353714,1726547438893,-500.0,0.00017263,2]
[338353715,1726547438902,-500.0,0.00017263,2]
[338353716,1726547438911,-500.0,0.00017263,2]
[338353717,1726547438920,-500.0,0.00017263,2]
[338353718,1726547438929,-500.0,0.00017263,2]
[338353719,1726547438938,-500.0,0.00017263,2]
[338353720,1726547438948,-500.0,0.00017263,2]
[338353721,1726547438957,-79826.4805134,0.00017265,2]
[338353722,1726547438966,-2163.56613968,0.00017265,2]
[338353723,1726547438975,-500.0,0.00017266,2]
[338353724,1726547438984,-500.0,0.00017266,2]
[338353725,1726547438993,-500.0,0.00017266,2]
[338353726,1726547439002,-500.0,0.00017266,2]
[338353727,1726547439011,-500.0,0.00017266,2]
[338353728,1726547439020,-534.50023922,0.00017266,2]
[338353729,1726547439029,-500.0,0.00017266,2]
[338353730,1726547439038,-349.0714503,0.00017266,2]
[338353731,1726547439050,-500.0,0.00017266,2]
[338353732,1726547439060,-550.0,0.00017266,2]
[338353733,1726547439069,-500.0,0.00017266,2]
[338353734,1726547439078,-500.0,0.00017266,2]
[338353735,1726547439087,-500.0,0.00017266,2]
[338353736,1726547439097,-500.0,0.00017266,2]
[338353737,1726547439105,-500.0,0.00017266,2]
[338353738,1726547439114,-443.52809446,0.00017266,2]
[338353739,1726547439123,-500.0,0.00017266,2]
[338353740,1726547439132,-500.0,0.00017266,2]
[338353741,1726547439141,-668.89176139,0.00017266,2]
[338353742,1726547439150,-668.89176139,0.00017266,2]
[338353743,1726547439159,-500.0,0.00017266,2]
[338353744,1726547439168,-668.89176139,0.00017266,2]
[338353745,1726547439177,-547.72696122,0.00017266,2]
[338353746,1726547439186,-668.89176139,0.00017266,2]
[338353747,1726547439195,-404.01770264,0.00017266,2]
[338353748,1726547439204,-668.89176139,0.00017266,2]
[338353749,1726547439214,-668.89176139,0.00017266,2]
[338353750,1726547439223,-198.32383118,0.00017266,2]
[338353751,1726547439232,-668.89176139,0.00017266,2]
[338353752,1726547439241,-500.0,0.00017266,2]
[338353753,1726547439251,-668.89176139,0.00017266,2]
[338353754,1726547439260,-668.89176139,0.00017266,2]
[338353755,1726547439271,-668.89176139,0.00017266,2]
[338353756,1726547439280,-668.89176139,0.00017266,2]
[338353757,1726547439290,-500.0,0.00017266,2]
[338353758,1726547439299,-668.89176139,0.00017266,2]
[338353760,1726547439308,-500.0,0.00017266,2]
[338353761,1726547439317,-500.0,0.00017266,2]
[338353762,1726547439327,-668.89176139,0.00017266,2]
[338353763,1726547439338,-668.89176139,0.00017266,2]
[338353764,1726547439347,-668.89176139,0.00017266,2]
[338353765,1726547439356,-668.89176139,0.00017266,2]
[338353766,1726547439365,-668.89176139,0.00017266,2]
[338353767,1726547439377,-668.89176139,0.00017266,2]
[338353768,1726547439387,-668.89176139,0.00017266,2]
[338353769,1726547439397,-363.88776472,0.00017266,2]
[338353770,1726547439409,-802.84526,0.00017266,2]
[338353771,1726547439419,-802.84526,0.00017266,2]
[338353772,1726547439428,-240.94945793,0.00017266,2]
[338353773,1726547439438,-802.84526,0.00017266,2]
[338353775,1726547439447,-802.84526,0.00017266,2]
[338353776,1726547439455,-802.84526,0.00017266,2]
[338353777,1726547439464,-239479.44154,0.00017267,2]
[338353778,1726547439473,-2163.56613968,0.00017267,2]
[338353779,1726547439483,-999.40257335,0.00017287,2]
[338353780,1726547439492,-884.0,0.00017289,2]
[338353781,1726547439501,-176.64202104,0.00017399,2]
[338353782,1726547439511,-6709.10361058,0.00017399,2]
[338353784,1726547439520,-643.14673887,0.00017471,2]
[338353785,1726547439530,-1999.51392858,0.000176,2]
[338353786,1726547439539,-1171.50054965,0.00017658,2]
[338353787,1726547439549,-6709.10361058,0.00017728,2]
[338353788,1726547439559,-226.208864,0.000179,2]
[338353789,1726547439568,-6709.10361058,0.00017941,2]
[338353790,1726547439578,-1000.0,0.00017972,2]
[338353791,1726547439588,-1000.0,0.00017982,2]
[338353792,1726547439597,-1002.73351535,0.00017982,2]
[338353793,1726547439606,-2000.0,0.00018,2]
[338353794,1726547439616,-150.112233,0.000181,2]
[338353795,1726547439625,-1171.50054965,0.00018139,2]
[338353796,1726547439635,-172.62422,0.00018185,2]
[338353797,1726547439645,-6709.10361058,0.00018221,2]
[338353798,1726547439654,-172.62422,0.00018276,2]
[338353799,1726547439663,-150.112233,0.000183,2]
[338353800,1726547439672,-150.112233,0.000183,2]
[338353801,1726547439682,-500.0,0.00018391,2]
[338353802,1726547439692,-150.112233,0.000184,2]
[338353803,1726547439701,-2163.56613968,0.00018437,2]
[338353804,1726547439711,-6012.69398608,0.00018447,2]
[338353805,1726547439720,-6709.10361058,0.0001847,2]
[338353806,1726547439730,-150.112233,0.000185,2]
[338353807,1726547439739,-6518.92032803,0.00018578,2]
[338353808,1726547439749,-150.112233,0.000186,2]
[338353809,1726547439759,-1171.50054965,0.00018619,2]
[338353810,1726547439769,-150.112233,0.000187,2]
[338353811,1726547439778,-605.43771915,0.00018767,2]
[338353812,1726547439788,-150.41408983,0.00018795,2]
[338353813,1726547439797,-79826.4805134,0.00018797,2]
[338353814,1726547439807,-2163.56613968,0.00018798,2]
[338353815,1726547439817,-2000.41661227,0.000188,2]
[338353816,1726547439826,-150.112233,0.000188,2]
[338353817,1726547439836,-420.0,0.0001885,2]
[338353818,1726547439845,-6709.10361058,0.00018851,2]
[338353819,1726547439855,-605.43771915,0.00018877,2]
[338353820,1726547439865,-150.112233,0.000189,2]
[338353821,1726547439875,-150.41408983,0.00018904,2]
[338353822,1726547439885,-605.43771915,0.00018959,2]
[338353823,1726547439894,-6709.10361058,0.00018986,2]
[338353824,1726547439904,-150.41408983,0.00018986,2]
[338353825,1726547439913,-2703.47754782,0.00018988,2]
[338353826,1726547439922,-420.0,0.00018989,2]
[338353827,1726547439931,-151.0,0.00019,2]
[338353828,1726547439941,-151.0,0.00019,2]
[338353829,1726547439950,-150.112233,0.00019,2]
[338353830,1726547439960,-645.7238552,0.00019,2]
[338353831,1726547439970,-150.112233,0.00019,2]
[338353832,1726547439980,-12906.91631862,0.00019,2]
[338353846,1726547440169,-1240.35538214,0.00019,2]
[338353847,1726547440179,-286.65874117,0.00019,7]
[338353849,1726547440190,-605.43771915,0.00019041,2]
[338353851,1726547440200,-167.53524672,0.00019041,2]
[338353852,1726547440210,-500.0,0.0001905,2]
[338353854,1726547440219,-562.43569413,0.0001905,2]
[338353855,1726547440229,-456.52500384,0.0001905,2]
[338353857,1726547440238,-500.0,0.0001905,2]
[338353859,1726547440248,-500.0,0.0001905,2]
[338353860,1726547440257,-500.0,0.0001905,2]
[338353862,1726547440274,-4327.13227936,0.00019078,3]
[338353864,1726547440284,-2163.56613968,0.00019088,3]
[338353866,1726547440293,-2163.56613968,0.0001909,3]
[338353867,1726547440304,-150.41408983,0.00019096,2]
[338353869,1726547440313,-77343.02841093,0.00019098,2]
[338353870,1726547440322,-150.112233,0.000191,2]
[338353872,1726547440331,-3000.0,0.000191,2]
[338353874,1726547440341,-1171.50054965,0.000191,2]
[338353875,1726547440350,-3000.0,0.0001911,2]
[338353877,1726547440360,-3000.0,0.0001912,2]
[338353879,1726547440369,-3000.0,0.0001913,2]
[338353880,1726547440378,-3000.0,0.0001914,2]
[338353882,1726547440391,-3000.0,0.0001915,2]
[338353884,1726547440400,-605.43771915,0.00019151,2]
[338353886,1726547440410,-3000.0,0.0001916,2]
[338353887,1726547440420,-3000.0,0.0001917,2]
[338353889,1726547440429,-2163.56613968,0.00019177,3]
[338353891,1726547440439,-1000.0,0.00019178,2]
[338353892,1726547440448,-161.762938,0.00019178,2]
[338353894,1726547440458,-163.464333,0.00019178,2]
[338353896,1726547440468,-3430.149289,0.00019178,2]
[338353898,1726547440477,-2163.56613968,0.00019178,3]
[338353899,1726547440487,-3000.0,0.0001918,2]
[338353901,1726547440497,-2000.0,0.00019187,2]
[338353903,1726547440507,-2000.0,0.00019187,2]
[338353904,1726547440521,-2000.0,0.00019187,2]
[338353906,1726547440532,-2000.0,0.00019187,2]
[338353908,1726547440545,-2000.0,0.00019187,2]
[338353910,1726547440555,-1462.69999118,0.00019187,2]
[338353911,1726547440565,-2163.56613968,0.00019188,3]
[338353913,1726547440575,-2163.56613968,0.00019188,3]
[338353915,1726547440584,-3000.0,0.0001919,2]
[338353916,1726547440593,-66855.00121692,0.00019198,2]
[338353918,1726547440602,-150.112233,0.000192,2]
[338353920,1726547440611,-3000.0,0.000192,2]
[338353921,1726547440621,-600.0,0.000192,2]
[338353923,1726547440631,-150.41408983,0.00019205,2]
[338353925,1726547440640,-3000.0,0.0001921,2]
[338353926,1726547440649,-756.779,0.00019212,2]
[338353928,1726547440659,-3000.0,0.0001922,2]
[338353930,1726547440669,-3000.0,0.0001923,2]
[338353931,1726547440679,-605.43771915,0.00019233,2]
[338353933,1726547440690,-3000.0,0.0001924,2]
[338353935,1726547440700,-3000.0,0.0001925,2]
[338353937,1726547440710,-2163.56613968,0.0001925,3]
[338353938,1726547440721,-151.0,0.00019257,2]
[338353940,1726547440731,-151.0,0.00019257,2]
[338353942,1726547440741,-3000.0,0.0001926,2]
[338353944,1726547440751,-3000.0,0.0001927,2]
[338353945,1726547440761,-500.0,0.00019273,2]
[338353947,1726547440770,-3000.0,0.0001928,2]
[338353949,1726547440780,-150.41408983,0.00019288,2]
[338353950,1726547440789,-167.53524672,0.00019288,2]
[338353952,1726547440799,-167.53524671,0.00019288,2]
[338353954,1726547440809,-3000.0,0.0001929,2]
[338353955,1726547440819,-151.0,0.000193,2]
[338353957,1726547440829,-151.0,0.000193,2]
[338353959,1726547440839,-151.0,0.000193,2]
[338353961,1726547440849,-151.0,0.000193,2]
[338353962,1726547440858,-3270.68,0.000193,2]
[338353964,1726547440868,-3000.0,0.000193,2]
[338353966,1726547440878,-150.2829526,0.000193,2]
[338353967,1726547440888,-500.0,0.00019303,2]
[338353969,1726547440898,-500.47227061,0.00019303,2]
[338353971,1726547440908,-2163.56613968,0.00019306,3]
[338353972,1726547440918,-3000.0,0.0001931,2]
[338353974,1726547440928,-314.4,0.00019311,2]
[338353976,1726547440937,-605.43771915,0.00019315,2]
[338353977,1726547440947,-34123.29535592,0.00019316,2]
[338353979,1726547440956,-358.93283187,0.00019316,2]
[338353981,1726547440966,-3000.0,0.0001932,2]
[338353983,1726547440975,-151.786487,0.0001932,2]
[338353984,1726547440984,-1039.563439,0.0001932,2]
[338353986,1726547440994,-1039.563439,0.0001932,2]
[338353988,1726547441004,-3000.0,0.0001933,2]
[338353989,1726547441016,-3000.0,0.0001934,2]
[338353991,1726547441026,-2163.56613968,0.00019342,3]
[338353993,1726547441035,-6709.10361058,0.00019343,2]
[338353994,1726547441044,-500.0,0.00019345,2]
[338353996,1726547441053,-161.02001181,0.00019345,2]
[338353998,1726547441063,-500.0,0.0001935,2]
[338354000,1726547441073,-3000.0,0.0001935,2]